[Event "Israeli Open Championship 2019"]
[Site "Jerusalem"]
[Date "2019.12.19"]
[Round "7.6"]
[White "Kunin, Michael"]
[Black "Cohen Revivo, Shoham"]
[Result "1-0"]
[ECO "B31"]
[WhiteElo "2102"]
[BlackElo "2261"]
[Annotator "ChessBase"]
[PlyCount "117"]
[EventDate "2019.12.12"]
[EventType "swiss"]
[EventCountry "ISR"]
[SourceTitle "playchess.com"]
[Source "ChessBase"]
[SourceQuality "1"]
[TimeControl "5400+30"]

1. e4 {[%emt 0:05:21]} c5 {[%emt 0:00:00]} 2. Nf3 {[%emt 0:00:27]} Nc6 {[%emt 0:00:00]} 3. Bb5 {[%emt 0:00:09]} g6 {[%emt 0:00:00]} 4. d3 {[%emt 0:00:56]} Bg7 {[%emt 0:00:18]} 5. O-O {[%emt 0:00:42]} e5 {[%emt 0:00:07]} 6. Nc3 {[%emt 0:00:25]} Nge7 {[%emt 0:00:08]} 7. Bc4 {[%emt 0:00:19]} O-O {[%emt 0:01:04]} 8. Ng5 {[%emt 0:01:00]} h6 {[%emt 0:02:42]} 9. Nxf7 {[%emt 0:00:13]} Rxf7 {[%emt 0:00:06]} 10. Bxf7+ {[%emt 0:00:05]} Kxf7 {[%emt 0:00:05]} 11. f4 {[%emt 0:00:06]} exf4 {[%emt 0:00:28]} 12. Bxf4 {[%emt 0:00:08]} Kg8 {[%emt 0:01:02]} 13. Bd6 {[%emt 0:01:14]} Ne5 {[%emt 0:20:00]} 14. Qe2 {[%emt 0:15:04]} N7c6 {[%emt 0:17:48]} 15. Nd5 {[%emt 0:02:55]} b6 {[%emt 0:00:37]} 16. Rf2 {[%emt 0:12:12]} Bb7 {[%emt 0:02:56]} 17. Raf1 {[%emt 0:26:33]} Qg5 {[%emt 0:00:26]} 18. Nc7 {[%emt 0:08:50]} Rc8 {[%emt 0:01:59]} 19. c3 {[%emt 0:01:59]} Rxc7 {[%emt 0:02:39]} 20. Bxc7 {[%emt 0:00:10]} Ba6 {[%emt 0:00:19]} 21. Rd1 {[%emt 0:04:25]} Qe7 {[%emt 0:02:16]} 22. Bxe5 {[%emt 0:01:17]} Nxe5 {[%emt 0:00:06]} 23. Qc2 {[%emt 0:00:46]} Qg5 {[%emt 0:04:22]} 24. Qa4 {[%emt 0:16:44]} Bxd3 {[%emt 0:00:57]} 25. Rxd3 {[%emt 0:00:00]} Qc1+ {[%emt 0:01:25]} 26. Rd1 {[%emt 0:00:00]} Qe3 {[%emt 0:00:38]} 27. Qc2 {[%emt 0:00:00]} Kh7 {[%emt 0:00:06]} 28. Qe2 {[%emt 0:00:00]} Qg5 {[%emt 0:00:06]} 29. Rd5 {[%emt 0:00:00]} d6 {[%emt 0:00:39]} 30. Rxe5 {[%emt 0:00:00]} Qxe5 {[%emt 0:00:53]} 31. Rf7 {[%emt 0:00:00]} d5 {[%emt 0:01:07]} 32. Rxa7 {[%emt 0:00:00]} dxe4 {[%emt 0:00:30]} 33. Qe3 {[%emt 0:00:00]} Qd5 {[%emt 0:00:40]} 34. g3 {[%emt 0:01:15]} Qd1+ {[%emt 0:01:05]} 35. Kg2 {[%emt 0:01:01]} Qc2+ {[%emt 0:00:06]} 36. Qf2 {[%emt 0:00:30]} Qd3 {[%emt 0:00:20]} 37. Re7 {[%emt 0:00:25]} h5 {[%emt 0:00:17]} 38. a4 {[%emt 0:01:15]} Qd5 {[%emt 0:04:35]} 39. Qe3 {[%emt 0:00:27]} Qb3 {[%emt 0:00:09]} 40. Qe2 {[%emt 0:00:29]} e3 {[%emt 0:01:25]} 41. Rxe3 {[%emt 0:00:42]} Qxa4 {[%emt 0:00:09]} 42. Re7 {[%emt 0:00:20]} Qc6+ {[%emt 0:00:29]} 43. Qe4 {[%emt 0:00:19]} Qd6 {[%emt 0:00:04]} 44. Re6 {[%emt 0:00:21]} Qd2+ {[%emt 0:00:06]} 45. Kh3 {[%emt 0:00:16]} Qg5 {[%emt 0:00:24]} 46. Rxb6 {[%emt 0:00:31]} Bf6 {[%emt 0:00:24]} 47. Qf4 {[%emt 0:00:35]} Qxf4 {[%emt 0:00:58]} 48. gxf4 {[%emt 0:00:02]} Kg7 {[%emt 0:00:06]} 49. Rb7+ {[%emt 0:00:16]} Kf8 {[%emt 0:00:01]} 50. b4 {[%emt 0:00:23]} c4 {[%emt 0:01:06]} 51. Rc7 {[%emt 0:00:10]} Bxc3 {[%emt 0:00:07]} 52. Rxc4 {[%emt 0:00:06]} Bd2 {[%emt 0:00:15]} 53. Kg3 {[%emt 0:00:21]} Ke7 {[%emt 0:00:13]} 54. Re4+ {[%emt 0:00:12]} Kf6 {[%emt 0:00:12]} 55. b5 {[%emt 0:00:13]} Ba5 {[%emt 0:00:25]} 56. Ra4 {[%emt 0:00:19]} Bc7 {[%emt 0:00:05]} 57. b6 {[%emt 0:00:15]} Bd6 {[%emt 0:00:25]} 58. b7 {[%emt 0:00:22]} g5 {[%emt 0:00:05]} 59. Ra6 {[%emt 0:00:13]} 1-0

[Event "Israeli Open Championship 2019"]
[Site "Jerusalem"]
[Date "2019.12.19"]
[Round "7.7"]
[White "Uritsky, Yonathan"]
[Black "Tifferet, Shaked"]
[Result "0-1"]
[ECO "A21"]
[WhiteElo "1881"]
[BlackElo "2232"]
[Annotator "ChessBase"]
[PlyCount "86"]
[EventDate "2019.12.12"]
[EventType "swiss"]
[EventCountry "ISR"]
[SourceTitle "playchess.com"]
[Source "ChessBase"]
[SourceQuality "1"]
[TimeControl "5400+30"]

1. c4 {[%emt 0:00:00]} g6 {[%emt 0:00:00]} 2. g3 {[%emt 0:00:08]} Bg7 {[%emt 0:00:00]} 3. Bg2 {[%emt 0:00:38]} e5 {[%emt 0:00:07]} 4. Nc3 {[%emt 0:00:34]} d6 {[%emt 0:00:05]} 5. Rb1 {[%emt 0:00:19]} f5 {[%emt 0:00:30]} 6. b4 {[%emt 0:00:46]} Nf6 {[%emt 0:00:10]} 7. d3 {[%emt 0:00:31]} O-O {[%emt 0:00:05]} 8. e3 {[%emt 0:00:37]} Kh8 {[%emt 0:01:25]} 9. Nge2 {[%emt 0:00:20]} a6 {[%emt 0:01:53]} 10. O-O {[%emt 0:00:42]} c6 {[%emt 0:00:19]} 11. Qc2 {[%emt 0:01:38]} Be6 {[%emt 0:03:34]} 12. Rd1 {[%emt 0:02:35]} Nbd7 {[%emt 0:05:42]} 13. a4 {[%emt 0:06:22]} d5 {[%emt 0:13:52]} 14. Na2 {[%emt 0:01:32]} b5 {[%emt 0:05:11]} 15. c5 {[%emt 0:07:27]} g5 {[%emt 0:09:18]} 16. f4 {[%emt 0:07:04]} Nh5 {[%emt 0:04:13]} 17. Rf1 {[%emt 0:05:58]} Qe8 {[%emt 0:02:37]} 18. fxg5 {[%emt 0:11:04]} Qe7 {[%emt 0:05:59]} 19. Nac3 {[%emt 0:04:28]} Rae8 {[%emt 0:02:02]} 20. Bf3 {[%emt 0:16:25]} Qf7 {[%emt 0:01:59]} 21. Qd1 {[%emt 0:04:02]} e4 {[%emt 0:01:25]} 22. Bg2 {[%emt 0:04:05]} Qg6 {[%emt 0:40:34]} 23. d4 {[%emt 0:05:18]} Qxg5 {[%emt 0:00:00]} 24. Nf4 {[%emt 0:00:09]} Bf7 {[%emt 0:00:00]} 25. Ra1 {[%emt 0:00:41]} Ndf6 {[%emt 0:00:00]} 26. axb5 {[%emt 0:01:13]} axb5 {[%emt 0:00:00]} 27. Ra6 {[%emt 0:01:18]} Rc8 {[%emt 0:00:00]} 28. Nce2 {[%emt 0:03:47]} Ng4 {[%emt 0:00:00]} 29. Bd2 {[%emt 0:00:53]} Qh6 {[%emt 0:00:00]} 30. h3 {[%emt 0:02:16]} Ngf6 {[%emt 0:00:00]} 31. Kf2 {[%emt 0:00:32]} Rg8 {[%emt 0:00:00]} 32. Rg1 {[%emt 0:00:42]} Qg5 {[%emt 0:00:00]} 33. Bf1 {[%emt 0:01:48]} Bh6 {[%emt 0:00:00]} 34. Ra7 {[%emt 0:00:43]} Rg7 {[%emt 0:00:00]} 35. Qa1 {[%emt 0:01:39]} Rcg8 {[%emt 0:00:00]} 36. Be1 {[%emt 0:01:42]} Nxf4 {[%emt 0:00:00]} 37. Nxf4 {[%emt 0:00:01]} Nh5 {[%emt 0:00:00]} 38. h4 {[%emt 0:01:46]} Qf6 {[%emt 0:00:00]} 39. Nxh5 {[%emt 0:01:14]} Bxh5 {[%emt 0:00:00]} 40. Rxg7 {[%emt 0:00:05]} Qxg7 {[%emt 0:00:00]} 41. Qb2 {[%emt 0:03:35]} f4 {[%emt 0:00:00]} 42. exf4 {[%emt 0:00:19]} Bxf4 {[%emt 0:00:00]} 43. g4 {[%emt 0:00:21]} Qf6 {[%emt 0:00:00]} 0-1

[Event "Israeli Open Championship 2019"]
[Site "Jerusalem"]
[Date "2019.12.19"]
[Round "7.11"]
[White "Sobel, Ido"]
[Black "Birnboim, Nathan"]
[Result "1-0"]
[ECO "B15"]
[WhiteElo "1711"]
[BlackElo "2393"]
[Annotator "NA RC"]
[PlyCount "91"]
[EventDate "2019.12.12"]
[EventType "swiss"]
[EventCountry "ISR"]
[SourceTitle "playchess.com"]
[Source "ChessBase"]
[SourceQuality "1"]
[TimeControl "5400+30"]

{[%evp 8,67,41,32767,32767,32767,32767,32767,32767,32767,37,32767,15,0,32767,0,22,32767,45,22,21,5,30,-2,0,32767,32767,5,0,-15,32767,32767,32767,32767,32767,0,0,0,10,10,9,32767,32767,0,6,0,16,32767,14,32767,0,0,0,-18,67,-13,87,104,121,0,0,-1]} 1. e4 {[%emt 0:00:00]} c6 {[%emt 0:06:45]} 2. d4 {[%emt 0:00:00]} d5 {[%emt 0:00:08]} 3. Nc3 {[%emt 0:00:00]} dxe4 {[%emt 0:01:19]} 4. Nxe4 {[%emt 0:00:00]} Nf6 {[%emt 0:02:10]} 5. Nxf6+ {[%emt 0:00:00]} exf6 {[%emt 0:00:07]} 6. Nf3 {[%emt 0:00:27]} Bd6 {[%emt 0:00:22]} 7. Bd3 {[%emt 0:00:08]} O-O {[%emt 0:00:10]} 8. O-O {[%emt 0:00:02]} Nd7 {[%emt 0:04:22]} 9. c3 {[%emt 0:00:20]} Re8 {[%emt 0:01:12] B15: Caro-Kann: 3 Nc3: 3...g6 and 3...dxe4 4 Nxe4 Nf6 5 Nxf6+ exf6} 10. Qc2 {[%emt 0:00:02]} Nf8 {[%emt 0:01:13]} 11. Be3 {[%emt 0:06:31]} (11. Bf5 Qa5 12. Bxc8 Raxc8 13. Bd2 Ne6 14. Rfe1 Qh5 15. h3 g5 16. Qb3 b6 {½-½ (30) Tomczak,J (2631)-Dragun,K (2591) Warsaw 2019}) 11... Bg4 {[%emt 0:05:35]} 12. Nd2 {[%emt 0:00:31]} Bc7 {[%emt 0:04:55]} 13. Rfe1 {[%emt 0:01:36]} Qd6 {[%emt 0:02:52]} 14. Nf1 $146 {[%emt 0:00:15]} ({Predecessor:} 14. g3 Qd7 15. Ne4 f5 16. Nc5 Qc8 {0-1 (28) Sokolovsky,Y (1880)-Hansen,T (2429) Escaldes 2017}) 14... Rad8 {[%emt 0:03:49]} 15. f3 {[%emt 0:06:45]} Bc8 {[%emt 0:07:24]} 16. Bf2 {[%emt 0:01:14]} g6 {[%emt 0:02:38]} 17. Rxe8 {[%emt 0:09:46]} Rxe8 {[%emt 0:00:05]} 18. Re1 {[%emt 0:00:07]} Rxe1 {[%emt 0:00:26]} 19. Bxe1 {[%emt 0:00:01]} Qe6 {[%emt 0:09:43]} 20. Qb1 {[%emt 0:00:10]} Qe7 {[%emt 0:05:51]} 21. Qc1 {[%emt 0:06:21]} Ne6 {[%emt 0:04:42]} 22. Bg3 {[%emt 0:01:50]} Bxg3 {[%emt 0:02:31]} 23. Nxg3 {[%emt 0:00:03]} f5 {[%emt 0:01:58]} 24. Ne2 {[%emt 0:17:41]} Qd6 {[%emt 0:08:53]} 25. Bc4 {[%emt 0:05:09]} b5 {[%emt 0:10:21]} 26. Bb3 {[%emt 0:07:28]} Kg7 {[%emt 0:02:29]} 27. Qd2 {[%emt 0:12:59]} h5 {[%emt 0:05:36]} 28. Bxe6 {[%emt 0:06:20]} Bxe6 {[%emt 0:01:14]} 29. b3 {[%emt 0:00:12]} a5 {[%emt 0:00:36]} 30. Nf4 {[%emt 0:13:56]} c5 {[%emt 0:02:20]} (30... a4 $11) 31. Ne2 {[%emt 0:04:22]} (31. d5 $14) 31... b4 {[%emt 0:00:30]} (31... c4 $15 32. b4 axb4 33. cxb4 f6) 32. c4 {[%emt 0:00:24]} Bd7 {[%emt 0:00:20]} 33. Qe3 $11 {[%emt 0:00:50]} (33. d5 $16) 33... f4 {[%emt 0:00:46]} 34. Qd2 {[%emt 0:00:55]} Bf5 {[%emt 0:00:06]} 35. Kf2 {[%emt 0:00:28]} g5 {[%emt 0:00:14]} 36. Ke1 {[%emt 0:01:07]} Bg6 {[%emt 0:00:37]} 37. dxc5 {[%emt 0:00:00]} Qxc5 {[%emt 0:00:10]} 38. Qd4+ {[%emt 0:00:00]} Qxd4 {[%emt 0:00:08]} 39. Nxd4 {[%emt 0:00:01]} Bb1 {[%emt 0:00:11]} 40. Nc6 {[%emt 0:00:42]} Bxa2 {[%emt 0:00:02]} 41. Nxa5 {[%emt 0:00:12]} Kf6 {[%emt 0:00:05]} 42. Kd2 {[%emt 0:00:16]} Bb1 {[%emt 0:01:58]} 43. Nc6 {[%emt 0:00:01]} g4 {[%emt 0:00:18]} 44. Nxb4 {[%emt 0:00:27]} g3 {[%emt 0:00:22]} 45. h4 {[%emt 0:00:14]} Bf5 {[%emt 0:00:07]} 46. Nd3 {[%emt 0:00:23]} 1-0

[Event "Israeli Open Championship 2019"]
[Site "Jerusalem"]
[Date "2019.12.19"]
[Round "7.12"]
[White "Zak, Arad"]
[Black "Friedland, Moshe"]
[Result "0-1"]
[ECO "A21"]
[WhiteElo "2076"]
[BlackElo "2267"]
[Annotator "ChessBase"]
[PlyCount "98"]
[EventDate "2019.12.12"]
[EventType "swiss"]
[EventCountry "ISR"]
[SourceTitle "playchess.com"]
[Source "ChessBase"]
[SourceQuality "1"]
[TimeControl "5400+30"]

1. c4 {[%emt 0:06:36]} e5 {[%emt 0:00:00]} 2. Nc3 {[%emt 0:00:11]} d6 {[%emt 0:00:00]} 3. g3 {[%emt 0:00:49]} f5 {[%emt 0:00:00]} 4. d4 {[%emt 0:00:25]} Be7 {[%emt 0:00:08]} 5. Bh3 {[%emt 0:01:08]} Nf6 {[%emt 0:11:37]} 6. Nf3 {[%emt 0:00:32]} e4 {[%emt 0:03:12]} 7. Nh4 {[%emt 0:00:17]} g6 {[%emt 0:01:03]} 8. Bh6 {[%emt 0:00:22]} Kf7 {[%emt 0:03:01]} 9. Be3 {[%emt 0:43:04]} c6 {[%emt 0:19:12]} 10. f3 {[%emt 0:01:26]} Kg7 {[%emt 0:04:44]} 11. d5 {[%emt 0:04:18]} c5 {[%emt 0:08:05]} 12. O-O {[%emt 0:05:58]} Re8 {[%emt 0:00:33]} 13. Qd2 {[%emt 0:04:21]} f4 {[%emt 0:01:59]} 14. Bxc8 {[%emt 0:08:48]} fxe3 {[%emt 0:00:06]} 15. Qxe3 {[%emt 0:00:43]} Qxc8 {[%emt 0:00:22]} 16. fxe4 {[%emt 0:00:14]} Ng4 {[%emt 0:03:08]} 17. Qd2 {[%emt 0:03:38]} Bxh4 {[%emt 0:00:28]} 18. gxh4 {[%emt 0:00:23]} Ne5 {[%emt 0:02:21]} 19. Qf4 {[%emt 0:00:31]} Qd8 {[%emt 0:03:48]} 20. h5 {[%emt 0:00:26]} Nbd7 {[%emt 0:01:13]} 21. Nb5 {[%emt 0:01:23]} Rf8 {[%emt 0:01:06]} 22. Qg3 {[%emt 0:00:36]} Nf6 {[%emt 0:01:49]} 23. Qg5 {[%emt 0:02:19]} Nxh5 {[%emt 0:03:30]} 24. Qxd8 {[%emt 0:00:27]} Rxf1+ {[%emt 0:00:50]} 25. Rxf1 {[%emt 0:00:11]} Rxd8 {[%emt 0:00:04]} 26. Nc7 {[%emt 0:00:11]} Kg8 {[%emt 0:01:10]} 27. Ne6 {[%emt 0:02:18]} Rc8 {[%emt 0:00:16]} 28. b3 {[%emt 0:01:47]} Ng7 {[%emt 0:00:13]} 29. Ng5 {[%emt 0:00:23]} h6 {[%emt 0:00:21]} 30. Nh3 {[%emt 0:00:15]} Rf8 {[%emt 0:00:11]} 31. Rb1 {[%emt 0:01:23]} b6 {[%emt 0:00:47]} 32. a4 {[%emt 0:00:40]} Nh5 {[%emt 0:01:06]} 33. a5 {[%emt 0:00:18]} Nf4 {[%emt 0:00:10]} 34. Nxf4 {[%emt 0:01:22]} Rxf4 {[%emt 0:00:02]} 35. axb6 {[%emt 0:00:25]} axb6 {[%emt 0:00:02]} 36. Ra1 {[%emt 0:00:08]} Rxe4 {[%emt 0:00:38]} 37. Ra7 {[%emt 0:00:22]} Re3 {[%emt 0:00:29]} 38. Ra3 {[%emt 0:00:12]} Rxe2 {[%emt 0:00:29]} 39. Ra6 {[%emt 0:00:42]} Nd7 {[%emt 0:00:16]} 40. Ra7 {[%emt 0:00:12]} Re7 {[%emt 0:00:10]} 41. Rc7 {[%emt 0:00:09]} Rf7 {[%emt 0:04:11]} 42. Rc6 {[%emt 0:00:24]} Rf6 {[%emt 0:00:04]} 43. Rc7 {[%emt 0:00:25]} Ne5 {[%emt 0:00:05]} 44. Rb7 {[%emt 0:00:09]} g5 {[%emt 0:00:53]} 45. Rxb6 {[%emt 0:00:10]} Kg7 {[%emt 0:00:10]} 46. Rb7+ {[%emt 0:00:56]} Kg6 {[%emt 0:00:59]} 47. b4 {[%emt 0:00:10]} cxb4 {[%emt 0:00:36]} 48. Rxb4 {[%emt 0:00:10]} Rf4 {[%emt 0:00:04]} 49. Rb6 {[%emt 0:00:33]} Nxc4 {[%emt 0:00:05]} 0-1

[Event "Israeli Open Championship 2019"]
[Site "Jerusalem"]
[Date "2019.12.19"]
[Round "7.13"]
[White "Bulkovstein, David"]
[Black "Zalkind, Konstantin"]
[Result "1/2-1/2"]
[ECO "B38"]
[WhiteElo "1889"]
[BlackElo "2162"]
[Annotator "ChessBase"]
[PlyCount "83"]
[EventDate "2019.12.12"]
[EventType "swiss"]
[EventCountry "ISR"]
[SourceTitle "playchess.com"]
[Source "ChessBase"]
[SourceQuality "1"]
[TimeControl "5400+30"]

1. e4 {[%emt 0:00:00]} c5 {[%emt 0:00:02]} 2. Nf3 {[%emt 0:00:00]} Nc6 {[%emt 0:00:21]} 3. d4 {[%emt 0:00:00]} cxd4 {[%emt 0:00:05]} 4. Nxd4 {[%emt 0:00:00]} g6 {[%emt 0:00:09]} 5. c4 {[%emt 0:00:31]} Bg7 {[%emt 0:00:16]} 6. Be3 {[%emt 0:00:12]} Nf6 {[%emt 0:00:20]} 7. Nc3 {[%emt 0:00:08]} O-O {[%emt 0:02:01]} 8. Be2 {[%emt 0:00:33]} d6 {[%emt 0:00:19]} 9. O-O {[%emt 0:00:11]} Nxd4 {[%emt 0:00:22]} 10. Bxd4 {[%emt 0:00:08]} Be6 {[%emt 0:00:08]} 11. f4 {[%emt 0:08:25]} Rc8 {[%emt 0:03:15]} 12. b3 {[%emt 0:02:06]} Qa5 {[%emt 0:00:41]} 13. Qd3 {[%emt 0:05:37]} Nd7 {[%emt 0:01:01]} 14. Bxg7 {[%emt 0:04:36]} Kxg7 {[%emt 0:00:20]} 15. f5 {[%emt 0:10:04]} Ne5 {[%emt 0:00:45]} 16. Qg3 {[%emt 0:07:02]} Bd7 {[%emt 0:01:21]} 17. Nd5 {[%emt 0:00:23]} Qd2 {[%emt 0:03:17]} 18. Rf2 {[%emt 0:05:13]} f6 {[%emt 0:10:39]} 19. Rd1 {[%emt 0:06:03]} Qg5 {[%emt 0:00:47]} 20. Nxe7 {[%emt 0:06:42]} Rce8 {[%emt 0:00:30]} 21. Nd5 {[%emt 0:00:12]} Qxg3 {[%emt 0:01:18]} 22. hxg3 {[%emt 0:00:02]} Nc6 {[%emt 0:02:25]} 23. Bd3 {[%emt 0:02:48]} gxf5 {[%emt 0:00:44]} 24. exf5 {[%emt 0:00:21]} Re5 {[%emt 0:00:21]} 25. Rf4 {[%emt 0:07:45]} Nd8 {[%emt 0:01:25]} 26. Kf2 {[%emt 0:03:42]} Nf7 {[%emt 0:00:20]} 27. g4 {[%emt 0:02:49]} Ng5 {[%emt 0:00:38]} 28. Bc2 {[%emt 0:03:13]} Rfe8 {[%emt 0:03:32]} 29. Nc3 {[%emt 0:01:17]} Nf7 {[%emt 0:01:12]} 30. Be4 {[%emt 0:05:49]} Bc6 {[%emt 0:00:42]} 31. Bf3 {[%emt 0:00:31]} Re3 {[%emt 0:02:14]} 32. Nd5 {[%emt 0:02:45]} Bxd5 {[%emt 0:00:51]} 33. Rxd5 {[%emt 0:00:31]} b6 {[%emt 0:01:24]} 34. Rfd4 {[%emt 0:01:34]} Re1 {[%emt 0:02:13]} 35. Rd2 {[%emt 0:00:33]} Kh6 {[%emt 0:01:04]} 36. Kg3 {[%emt 0:01:21]} Kg7 {[%emt 0:02:21]} 37. R5d3 {[%emt 0:01:05]} Kf8 {[%emt 0:00:25]} 38. Kf2 {[%emt 0:03:14]} R8e5 {[%emt 0:01:20]} 39. Bd5 {[%emt 0:00:40]} Ng5 {[%emt 0:00:26]} 40. Bf3 {[%emt 0:00:33]} Nf7 {[%emt 0:00:20]} 41. Bd5 {[%emt 0:01:15]} Ng5 {[%emt 0:00:03]} 42. Bf3 {[%emt 0:00:29]} 1/2-1/2

[Event "Israeli Open Championship 2019"]
[Site "Jerusalem"]
[Date "2019.12.19"]
[Round "7.14"]
[White "Slonimskij, Arkadij"]
[Black "Levitan, Ronit"]
[Result "1/2-1/2"]
[ECO "D36"]
[WhiteElo "2133"]
[BlackElo "1876"]
[Annotator "ChessBase"]
[PlyCount "64"]
[EventDate "2019.12.12"]
[EventType "swiss"]
[EventCountry "ISR"]
[SourceTitle "playchess.com"]
[Source "ChessBase"]
[SourceQuality "1"]
[TimeControl "5400+30"]

1. d4 {[%emt 0:21:31]} d5 {[%emt 0:00:00]} 2. c4 {[%emt 0:00:08]} e6 {[%emt 0:00:02]} 3. cxd5 {[%emt 0:00:10]} exd5 {[%emt 0:00:08]} 4. Nc3 {[%emt 0:00:00]} Nf6 {[%emt 0:00:00]} 5. Bg5 {[%emt 0:00:00]} Be7 {[%emt 0:00:20]} 6. e3 {[%emt 0:00:03]} Nbd7 {[%emt 0:09:13]} 7. Qc2 {[%emt 0:00:46]} c6 {[%emt 0:04:49]} 8. Bd3 {[%emt 0:00:26]} Nf8 {[%emt 0:04:36]} 9. Nf3 {[%emt 0:01:50]} Be6 {[%emt 0:00:39]} 10. Ne5 {[%emt 0:01:19]} h6 {[%emt 0:09:51]} 11. Bh4 {[%emt 0:00:28]} g5 {[%emt 0:01:59]} 12. Bg3 {[%emt 0:00:25]} Nh5 {[%emt 0:01:17]} 13. Be2 {[%emt 0:05:02]} Nxg3 {[%emt 0:01:42]} 14. hxg3 {[%emt 0:00:15]} Nd7 {[%emt 0:01:25]} 15. Ng4 {[%emt 0:07:36]} Bf8 {[%emt 0:13:40]} 16. O-O-O {[%emt 0:02:36]} Nf6 {[%emt 0:09:14]} 17. Ne5 {[%emt 0:01:47]} Qc8 {[%emt 0:06:06]} 18. Nf3 {[%emt 0:09:30]} Bf5 {[%emt 0:03:18]} 19. Bd3 {[%emt 0:00:22]} Bxd3 {[%emt 0:00:54]} 20. Qxd3 {[%emt 0:00:25]} Bg7 {[%emt 0:00:51]} 21. Kb1 {[%emt 0:05:09]} Qe6 {[%emt 0:01:43]} 22. Ne5 {[%emt 0:04:26]} O-O-O {[%emt 0:03:54]} 23. f3 {[%emt 0:02:42]} Nd7 {[%emt 0:02:48]} 24. Ng4 {[%emt 0:03:21]} f5 {[%emt 0:00:53]} 25. Nf2 {[%emt 0:00:04]} Rhe8 {[%emt 0:00:11]} 26. Rhe1 {[%emt 0:00:33]} Nb6 {[%emt 0:02:04]} 27. g4 {[%emt 0:01:10]} fxg4 {[%emt 0:04:08]} 28. Nxg4 {[%emt 0:01:09]} h5 {[%emt 0:00:05]} 29. Nf2 {[%emt 0:00:10]} Qf7 {[%emt 0:00:12]} 30. Re2 {[%emt 0:03:39]} Kb8 {[%emt 0:01:18]} 31. Rde1 {[%emt 0:00:53]} Re7 {[%emt 0:03:54]} 32. Ka1 {[%emt 0:02:00]} Red7 {[%emt 0:00:20]} 1/2-1/2

[Event "Israeli Open Championship 2019"]
[Site "Jerusalem"]
[Date "2019.12.19"]
[Round "7.15"]
[White "Sobel, Alon"]
[Black "Sokolovsky, Yahli"]
[Result "0-1"]
[ECO "A69"]
[WhiteElo "1804"]
[BlackElo "2045"]
[Annotator "NA RC"]
[PlyCount "70"]
[EventDate "2019.12.12"]
[EventType "swiss"]
[EventCountry "ISR"]
[SourceTitle "playchess.com"]
[Source "ChessBase"]
[SourceQuality "1"]
[TimeControl "5400+30"]

1. d4 {[%emt 0:00:00]} Nf6 {[%emt 0:11:25]} 2. c4 {[%emt 0:00:00]} g6 {[%emt 0:00:04]} 3. Nc3 {[%emt 0:00:00]} Bg7 {[%emt 0:00:06]} 4. e4 {[%emt 0:00:00]} d6 {[%emt 0:00:04]} 5. f4 {[%emt 0:00:00]} O-O {[%emt 0:00:07]} 6. Nf3 {[%emt 0:00:00]} c5 {[%emt 0:00:16]} 7. d5 {[%emt 0:00:03]} e6 {[%emt 0:00:05]} 8. Be2 {[%emt 0:00:05]} exd5 {[%emt 0:00:05]} 9. cxd5 {[%emt 0:00:07]} Nbd7 {[%emt 0:00:34]} 10. O-O {[%emt 0:00:11]} Re8 {[%emt 0:00:17]} 11. Nd2 {[%emt 0:00:13]} c4 {[%emt 0:00:26]} 12. Bxc4 {[%emt 0:04:41] A69: Modern Benoni: Four Pawns Attack with 9...Re8} (12. e5 dxe5 13. Nxc4 Nb6 14. Nxe5 Nbxd5 15. Qb3 Be6 16. Nxd5 Bxd5 17. Bc4 Bxc4 18. Qxc4 Qd5 19. Qb3 Rad8 20. Be3 a6 {0-1 (35) El Gindy,E (2453)-Amin,B (2667) Livingstone 2018}) 12... Nc5 {[%emt 0:00:38]} 13. Re1 {[%emt 0:00:49]} Qb6 {[%emt 0:12:51]} 14. Kh1 $146 {[%emt 0:03:17] [#]} ({Predecessor:} 14. h3 Nd3+ 15. Kh2 Nxe1 16. Qxe1 Bd7 17. Nf3 Nxe4 18. Nxe4 f5 19. Be3 Qc7 {0-1 (36) Sarki,J-Ferreira,A (2221) Dos Hermanas 2003}) 14... Ng4 $1 {[%emt 0:00:34]} 15. Qf3 {[%emt 0:00:11] [#]} Nd3 $1 {[%emt 0:11:32]} 16. Bxd3 {[%emt 0:03:26]} Nf2+ {[%emt 0:00:25]} 17. Kg1 {[%emt 0:00:06]} Nxd3+ {[%emt 0:01:43]} 18. Kf1 {[%emt 0:06:33]} Nxe1 {[%emt 0:01:42]} 19. Kxe1 {[%emt 0:00:13]} Qg1+ {[%emt 0:08:34]} 20. Nf1 {[%emt 0:00:31]} Bf5 {[%emt 0:06:35]} 21. e5 {[%emt 0:09:07]} dxe5 {[%emt 0:00:51]} 22. Be3 {[%emt 0:01:20]} exf4 {[%emt 0:00:35]} 23. Ne2 {[%emt 0:00:52]} Rxe3 {[%emt 0:00:39]} 24. Qxe3 {[%emt 0:01:27]} Qxe3 {[%emt 0:00:12]} 25. Nxe3 {[%emt 0:00:21]} fxe3 {[%emt 0:00:15]} 26. Nc3 {[%emt 0:00:46]} Rd8 {[%emt 0:01:02]} 27. Rd1 {[%emt 0:00:35]} Bc2 {[%emt 0:00:38]} 28. Rc1 {[%emt 0:00:07]} Bd3 {[%emt 0:00:21]} 29. Nd1 {[%emt 0:01:20]} Bd4 {[%emt 0:00:43]} 30. Rc7 {[%emt 0:01:26]} Rxd5 {[%emt 0:00:18]} 31. Rxb7 {[%emt 0:00:49]} e2 {[%emt 0:00:19]} 32. Nc3 {[%emt 0:00:15]} Bxc3+ {[%emt 0:00:15] Decoy} 33. bxc3 {[%emt 0:00:12]} Rf5 {[%emt 0:00:19]} 34. Re7 {[%emt 0:00:35]} Rf1+ {[%emt 0:00:07]} 35. Kd2 {[%emt 0:00:14]} Rd1+ {[%emt 0:00:07]} 0-1